fUST/lending_fUST_20260107
["ID","MTS","AMOUNT","RATE_DAILY","PERIOD"]
[400678015,1767777081581,-927.69,0.0003041,2]
[400678016,1767777081591,-500.0,0.0003041,2]
[400678017,1767777081601,-4613.91,0.0003041,2]
[400678018,1767777081610,-717.62,0.0003041,2]
[400678019,1767777081621,-1000.0,0.0003041,2]
[400678020,1767777081631,-500.0,0.0003041,2]
[400678021,1767777081642,-500.0,0.0003041,2]
[400678022,1767777081653,-500.0,0.0003041,2]
[400678023,1767777081663,-1076.6,0.0003041,2]
[400678024,1767777081676,-2787.6,0.0003041,2]
[400678025,1767777081686,-500.0,0.0003041,2]
[400678026,1767777081695,-3498.13314812,0.0003041,2]
[400678027,1767777081705,-689.83,0.0003041,2]
[400678028,1767777081715,-836.4,0.0003041,2]
[400678029,1767777081727,-505.05,0.0003041,2]
[400678030,1767777081739,-853.68,0.0003041,2]
[400678031,1767777081749,-500.0,0.0003041,2]
[400678032,1767777081759,-500.0,0.0003041,2]
[400678033,1767777081770,-500.0,0.0003041,2]
[400678034,1767777081780,-500.0,0.0003041,2]
[400678035,1767777081791,-3088.57,0.0003041,2]
[400678036,1767777081802,-500.0,0.0003041,2]
[400678037,1767777081811,-500.0,0.0003041,2]
[400678038,1767777081822,-797.84,0.0003041,2]
[400678039,1767777081831,-500.0,0.0003041,2]
[400678040,1767777081841,-690.11,0.0003041,2]
[400678041,1767777081851,-725.03,0.0003041,2]
[400678042,1767777081862,-500.0,0.0003041,2]
[400678043,1767777081871,-3000.0,0.0003042,4]
[400678044,1767777081881,-4963.577836,0.0003043,4]
[400678045,1767777081892,-160.0,0.00030437,120]
[400678046,1767777081902,-2379.48446725,0.00030455,2]
[400678047,1767777081912,-159.0,0.00030463,120]
[400678048,1767777081923,-185.0,0.00030483,120]
[400678049,1767777081933,-258.12,0.000305,7]
[400678050,1767777081942,-243.07,0.000305,7]
[400678051,1767777081952,-309.0,0.00030519,120]
[400678052,1767777081961,-1606.0,0.00030548,2]
[400678053,1767777081972,-663.93287602,0.00030554,2]
[400678054,1767777081982,-3207.40519818,0.00030554,2]
[400678055,1767777081992,-184.812283,0.00030677,31]
[400678056,1767777082002,-184.812283,0.00030677,31]
[400678057,1767777082012,-184.812283,0.00030677,31]
[400678058,1767777082022,-184.812283,0.00030677,31]
[400678059,1767777082032,-1606.0,0.0003068,2]
[400678060,1767777082041,-500.0,0.00030684,2]
[400678061,1767777082051,-1000.0,0.00030684,2]
[400678062,1767777082060,-200.0,0.00030684,2]
[400678063,1767777082069,-601.36,0.00030684,2]
[400678064,1767777082078,-756.53,0.00030684,2]
[400678065,1767777082178,-500.0,0.00030684,2]
[400678066,1767777082188,-836.74,0.00030684,2]
[400678067,1767777082198,-913.08,0.00030684,2]
[400678068,1767777082207,-500.0,0.00030684,2]
[400678069,1767777082217,-500.0,0.00030684,2]
[400678070,1767777082227,-500.0,0.00030684,2]
[400678071,1767777082235,-500.0,0.00030684,2]
[400678072,1767777082244,-500.0,0.00030684,2]
[400678073,1767777082253,-548.79,0.00030684,2]
[400678074,1767777082262,-582.84,0.00030684,2]
[400678075,1767777082272,-500.0,0.00030684,2]
[400678076,1767777082281,-500.0,0.00030684,2]
[400678077,1767777082291,-500.0,0.00030684,2]
[400678078,1767777082300,-3962.5,0.00030684,2]
[400678079,1767777082309,-500.0,0.00030684,2]
[400678080,1767777082318,-360.8739275,0.00030684,2]
[400678081,1767777082327,-500.0,0.00030684,2]
[400678082,1767777082337,-557.84,0.00030684,2]
[400678083,1767777082346,-500.0,0.00030684,2]
[400678084,1767777082355,-678.0,0.00030684,2]
[400678085,1767777082365,-500.0,0.00030684,2]
[400678086,1767777082375,-500.0,0.00030684,2]
[400678087,1767777082384,-2251.87,0.00030684,2]
[400678088,1767777082394,-174.802772,0.00030684,2]
[400678089,1767777082403,-637.59,0.00030684,2]
[400678090,1767777082412,-909.99,0.00030684,2]
[400678091,1767777082423,-500.0,0.00030684,2]
[400678092,1767777082432,-14665.45,0.00030684,2]
[400678093,1767777082442,-956.27,0.00030684,2]
[400678094,1767777082451,-661.34,0.00030684,2]
[400678095,1767777082461,-500.0,0.00030684,2]
[400678096,1767777082470,-927.69,0.00030684,2]
[400678097,1767777082479,-500.0,0.00030684,2]
[400678098,1767777082488,-4613.91,0.00030684,2]
[400678099,1767777082497,-717.62,0.00030684,2]
[400678100,1767777082507,-1000.0,0.00030684,2]
[400678101,1767777082516,-500.0,0.00030684,2]
[400678102,1767777082526,-500.0,0.00030684,2]
[400678103,1767777082535,-500.0,0.00030684,2]
[400678104,1767777082545,-1076.6,0.00030684,2]
[400678105,1767777082554,-2787.6,0.00030684,2]
[400678106,1767777082564,-500.0,0.00030684,2]
[400678107,1767777082573,-3498.13314812,0.00030684,2]
[400678108,1767777082583,-689.83,0.00030684,2]
[400678109,1767777082593,-836.4,0.00030684,2]
[400678110,1767777082602,-505.05,0.00030684,2]
[400678111,1767777082612,-853.68,0.00030684,2]
[400678112,1767777082621,-500.0,0.00030684,2]
[400678113,1767777082630,-528.13886245,0.00030684,2]
[400678114,1767777082640,-500.0,0.00030684,2]
[400678115,1767777082649,-500.0,0.00030684,2]
[400678116,1767777082659,-3088.57,0.00030684,2]
[400678117,1767777082668,-500.0,0.00030684,2]
[400678118,1767777082679,-450.71898931,0.00030684,2]
[400678119,1767777082688,-797.84,0.00030684,2]
[400678120,1767777082698,-500.0,0.00030684,2]
[400678121,1767777082707,-690.11,0.00030684,2]
[400678122,1767777082717,-725.03,0.00030684,2]
[400678123,1767777082728,-300.76193579,0.00030684,2]
[400678124,1767777082737,-500.0,0.00030685,120]
[400678125,1767777082747,-1299.19626571,0.00030685,5]
[400678126,1767777082756,-750.0,0.00030685,5]
[400678127,1767777082767,-1041.66666667,0.000307,7]
[400678128,1767777082776,-2200.0,0.00030764,7]
[400678129,1767777082786,-1606.0,0.00030789,2]
[400678130,1767777082796,-2200.0,0.00030854,7]
[400678131,1767777082806,-500.0,0.0003087,7]
[400678132,1767777082815,-1606.0,0.00030892,2]
[400678133,1767777082825,-2000.0,0.00030906,7]
[400678134,1767777082835,-2379.48446725,0.00030957,2]
[400678135,1767777082844,-500.0,0.00030958,2]
[400678136,1767777082854,-1000.0,0.00030958,2]
[400678137,1767777082864,-200.0,0.00030958,2]
[400678138,1767777082874,-601.36,0.00030958,2]
[400678139,1767777082883,-756.53,0.00030958,2]
[400678140,1767777082893,-500.0,0.00030958,2]
[400678141,1767777082902,-836.74,0.00030958,2]
[400678142,1767777082912,-913.08,0.00030958,2]
[400678143,1767777082922,-500.0,0.00030958,2]
[400678144,1767777082932,-546.40698577,0.00030958,2]
[400678145,1767777082962,-500.0,0.00030958,2]
[400678146,1767777082972,-402.32,0.00030958,30]
[400678147,1767777082981,-401.33329691,0.00030958,2]
[400678148,1767777082991,-500.0,0.00030958,2]
[400678149,1767777083001,-548.79,0.00030958,2]
[400678150,1767777083010,-582.84,0.00030958,2]
[400678151,1767777083019,-500.0,0.00030958,2]
[400678152,1767777083029,-500.0,0.00030958,2]
[400678153,1767777083038,-500.0,0.00030958,2]
[400678154,1767777083049,-209.524359,0.00030958,31]
[400678155,1767777083058,-3962.5,0.00030958,2]
[400678156,1767777083068,-209.524359,0.00030958,31]
[400678157,1767777083077,-209.524359,0.00030958,31]
[400678158,1767777083089,-500.0,0.00030958,2]
[400678159,1767777083101,-209.524359,0.00030958,31]
[400678160,1767777083110,-241.004676,0.00030958,31]
[400678161,1767777083119,-241.004676,0.00030958,31]
[400678162,1767777083128,-241.004676,0.00030958,31]
[400678163,1767777083139,-186.329815,0.00030958,31]
[400678164,1767777083149,-241.004676,0.00030958,31]
[400678165,1767777083159,-186.329815,0.00030958,31]
[400678166,1767777083169,-186.329815,0.00030958,31]
[400678167,1767777083179,-186.329815,0.00030958,31]
[400678168,1767777083189,-500.0,0.00030958,2]
[400678169,1767777083199,-151.0,0.00030958,31]
[400678170,1767777083209,-557.84,0.00030958,2]
[400678171,1767777083218,-530.111159,0.00030958,31]
[400678172,1767777083229,-500.0,0.00030958,2]
[400678173,1767777083238,-225.672265,0.00030958,31]
[400678174,1767777083248,-530.111159,0.00030958,31]
[400678175,1767777083258,-225.672265,0.00030958,31]
[400678176,1767777083267,-530.111159,0.00030958,31]
[400678177,1767777083277,-678.0,0.00030958,2]
[400678178,1767777083287,-225.672265,0.00030958,31]
[400678179,1767777083297,-225.672265,0.00030958,31]
[400678180,1767777083307,-530.111159,0.00030958,31]
[400678181,1767777083317,-500.0,0.00030958,2]
[400678182,1767777083327,-218.702509,0.00030958,31]
[400678183,1767777083337,-218.702509,0.00030958,31]
[400678184,1767777083347,-218.702509,0.00030958,31]
[400678185,1767777083356,-500.0,0.00030958,2]
[400678186,1767777083366,-218.702509,0.00030958,31]
[400678187,1767777083375,-2251.87,0.00030958,2]
[400678188,1767777083385,-637.59,0.00030958,2]
[400678189,1767777083395,-909.99,0.00030958,2]
[400678190,1767777083404,-500.0,0.00030958,2]
[400678191,1767777083414,-14665.45,0.00030958,2]
[400678192,1767777083426,-956.27,0.00030958,2]
[400678193,1767777083436,-661.34,0.00030958,2]
[400678194,1767777083445,-500.0,0.00030958,2]
[400678195,1767777083455,-927.69,0.00030958,2]
[400678196,1767777083465,-500.0,0.00030958,2]
[400678197,1767777083475,-4613.91,0.00030958,2]
[400678198,1767777083485,-717.62,0.00030958,2]
[400678199,1767777083496,-935.42793912,0.00030958,2]
[400678200,1767777083507,-500.0,0.00030958,2]
[400678201,1767777083517,-500.0,0.00030958,2]
[400678202,1767777083528,-500.0,0.00030958,2]
[400678203,1767777083538,-1076.6,0.00030958,2]
[400678204,1767777083548,-2787.6,0.00030958,2]
[400678205,1767777083558,-500.0,0.00030958,2]
[400678206,1767777083569,-3498.13314812,0.00030958,2]
[400678207,1767777083579,-689.83,0.00030958,2]
[400678208,1767777083589,-836.4,0.00030958,2]
[400678209,1767777083600,-505.05,0.00030958,2]
[400678210,1767777083610,-853.68,0.00030958,2]
[400678211,1767777083620,-500.0,0.00030958,2]
[400678212,1767777083630,-500.0,0.00030958,2]
[400678213,1767777083640,-626.32134771,0.00030958,2]
[400678214,1767777083650,-3088.57,0.00030958,2]
[400678215,1767777083660,-500.0,0.00030958,2]
[400678216,1767777083671,-797.84,0.00030958,2]
[400678217,1767777083681,-500.71623148,0.00030958,2]
[400678218,1767777083691,-690.11,0.00030958,2]
[400678219,1767777083702,-725.03,0.00030958,2]
[400678220,1767777083713,-190.27089291,0.00031,120]
[400678221,1767777083724,-1041.66666667,0.00031,30]
[400678222,1767777083734,-191.51603111,0.00031,120]
[400678223,1767777083744,-163.98489072,0.00031,120]
[400678224,1767777083755,-174.41697135,0.00031,120]
[400678225,1767777083765,-194.89245098,0.00031,120]
[400678226,1767777083776,-164.04291735,0.00031,120]
[400678227,1767777083786,-206.91086702,0.00031,120]
[400678228,1767777083796,-1247.79119589,0.00031,120]
[400678229,1767777083807,-186.0317041,0.00031,120]
[400678230,1767777083817,-176.11325056,0.00031,120]
[400678231,1767777083828,-1924.25,0.00031,7]
[400678232,1767777083838,-1020.52354742,0.00031,7]
[400678233,1767777083850,-1607.0,0.00031041,2]
[400678234,1767777083861,-1981.16465421,0.00031062,10]
[400678235,1767777083871,-346.1,0.00031077,4]
[400678236,1767777083882,-2811.62,0.000311,14]
[400678237,1767777083892,-688.49839244,0.00031102,2]
[400678238,1767777083902,-3326.07919052,0.00031102,2]
[400678239,1767777083912,-157.018213,0.00031131,10]
[400678240,1767777083923,-151.0,0.00031167,31]
[400678241,1767777083932,-151.0,0.00031167,31]
[400678242,1767777083942,-151.0,0.00031167,31]
[400678243,1767777083953,-4010.64105098,0.00031195,32]
[400678244,1767777083963,-2379.48446725,0.00031221,2]
[400678245,1767777083974,-500.0,0.00031232,2]
[400678246,1767777083984,-1000.0,0.00031232,2]
[400678247,1767777083994,-200.0,0.00031232,2]
[400678248,1767777084004,-601.36,0.00031232,2]
[400678249,1767777084014,-756.53,0.00031232,2]
[400678250,1767777084024,-500.0,0.00031232,2]
[400678251,1767777084034,-836.74,0.00031232,2]
[400678252,1767777084045,-913.08,0.00031232,2]
[400678253,1767777084056,-500.0,0.00031232,2]
[400678254,1767777084067,-500.0,0.00031232,2]
[400678255,1767777084078,-500.0,0.00031232,2]
[400678256,1767777084089,-548.79,0.00031232,2]
[400678257,1767777084100,-582.84,0.00031232,2]
[400678258,1767777084112,-500.0,0.00031232,2]
[400678259,1767777084123,-500.0,0.00031232,2]
[400678260,1767777084134,-373.26329317,0.00031232,2]
[400678261,1767777084144,-3962.5,0.00031232,2]
[400678262,1767777084154,-500.0,0.00031232,2]
[400678263,1767777084165,-192.31046126,0.00031232,2]
[400678264,1767777084175,-557.84,0.00031232,2]
[400678265,1767777084185,-500.0,0.00031232,2]
[400678266,1767777084195,-678.0,0.00031232,2]
[400678267,1767777084204,-500.0,0.00031232,2]
[400678268,1767777084214,-500.0,0.00031232,2]
[400678269,1767777084223,-2251.87,0.00031232,2]
[400678270,1767777084233,-637.59,0.00031232,2]
[400678271,1767777084242,-909.99,0.00031232,2]
[400678272,1767777084253,-500.0,0.00031232,2]
[400678273,1767777084262,-14665.45,0.00031232,2]
[400678274,1767777084272,-956.27,0.00031232,2]
[400678275,1767777084282,-661.34,0.00031232,2]
[400678276,1767777084292,-500.0,0.00031232,2]
[400678277,1767777084302,-927.69,0.00031232,2]
[400678278,1767777084311,-500.0,0.00031232,2]
[400678279,1767777084321,-4613.91,0.00031232,2]
[400678280,1767777084331,-717.62,0.00031232,2]
[400678281,1767777084340,-500.0,0.00031232,2]
[400678282,1767777084350,-500.0,0.00031232,2]
[400678283,1767777084360,-500.0,0.00031232,2]
[400678284,1767777084370,-1076.6,0.00031232,2]
[400678285,1767777084380,-2787.6,0.00031232,2]
[400678286,1767777084390,-500.0,0.00031232,2]
[400678287,1767777084401,-3498.13314812,0.00031232,2]
[400678288,1767777084410,-689.83,0.00031232,2]
[400678289,1767777084419,-836.4,0.00031232,2]
[400678290,1767777084429,-505.05,0.00031232,2]
[400678291,1767777084438,-853.68,0.00031232,2]
[400678292,1767777084448,-500.0,0.00031232,2]
[400678293,1767777084458,-500.0,0.00031232,2]
[400678294,1767777084468,-3088.57,0.00031232,2]
[400678295,1767777084478,-442.89147681,0.00031232,2]
[400678296,1767777084489,-797.84,0.00031232,2]
[400678297,1767777084498,-725.03,0.00031232,2]
[400678298,1767777084507,-690.11,0.00031232,2]
[400678299,1767777084517,-2379.48446725,0.00031252,2]
[400678300,1767777084526,-5000.0,0.00031288,2]
[400678301,1767777084535,-151.0,0.0003135,31]
[400678302,1767777084545,-7578.24763289,0.00031391,5]
[400678303,1767777084555,-5031.23858877,0.00031391,5]
[400678304,1767777084563,-31680.3085641,0.00031391,2]
[400678305,1767777084572,-2969.9088042,0.00031391,2]
[400678306,1767777084582,-32646.2585789,0.00031391,2]
[400678307,1767777084592,-1410.0722606,0.00031391,2]
[400678308,1767777084601,-2106.0646557,0.00031391,2]
[400678309,1767777084612,-3462.9987493,0.00031391,2]
[400678310,1767777084621,-151.0,0.00031391,31]
[400678311,1767777084631,-151.0,0.00031391,31]
[400678312,1767777084640,-151.0,0.00031391,31]
[400678313,1767777084649,-151.0,0.00031391,31]
[400678314,1767777084660,-151.0,0.00031391,31]
[400678315,1767777084669,-151.0,0.00031391,31]
[400678316,1767777084679,-609.666208,0.00031391,31]
[400678317,1767777084688,-609.666208,0.00031391,31]
[400678318,1767777084697,-609.666208,0.00031391,31]
[400678319,1767777084707,-609.666208,0.00031391,31]
[400678320,1767777084716,-214.456704,0.00031391,31]
[400678321,1767777084726,-214.456704,0.00031391,31]
[400678322,1767777084736,-214.456704,0.00031391,31]
[400678323,1767777084746,-214.456704,0.00031391,31]
[400678324,1767777084756,-1626.684503,0.00031391,31]
[400678325,1767777084766,-1626.684503,0.00031391,31]
[400678326,1767777084776,-1626.684503,0.00031391,31]
[400678327,1767777084785,-1626.684503,0.00031391,31]
[400678328,1767777084794,-194.927323,0.00031391,31]
[400678329,1767777084807,-194.927323,0.00031391,31]
[400678330,1767777084817,-194.927323,0.00031391,31]
[400678331,1767777084827,-194.927323,0.00031391,31]
[400678332,1767777084836,-169.0,0.00031425,46]
[400678333,1767777084846,-191.538092,0.00031452,30]
[400678334,1767777084855,-191.37491647,0.00031482,21]
[400678335,1767777084865,-500.0,0.00031506,2]
[400678336,1767777084875,-582.43753082,0.00031506,2]
[400678337,1767777084884,-200.0,0.00031506,2]
[400678338,1767777084894,-601.36,0.00031506,2]
[400678339,1767777084903,-756.53,0.00031506,2]
[400678340,1767777084912,-500.0,0.00031506,2]
[400678341,1767777084921,-836.74,0.00031506,2]
[400678342,1767777084932,-913.08,0.00031506,2]
[400678343,1767777084942,-175.61547082,0.00031506,2]
[400678344,1767777084952,-500.0,0.00031506,2]
[400678345,1767777084962,-402.32,0.00031506,31]
[400678346,1767777084972,-500.0,0.00031506,2]
[400678347,1767777084982,-548.79,0.00031506,2]
[400678348,1767777084992,-582.84,0.00031506,2]
[400678349,1767777085002,-500.0,0.00031506,2]
[400678350,1767777085011,-159.81329344,0.00031506,2]
[400678351,1767777085022,-3962.5,0.00031506,2]
[400678352,1767777085032,-500.0,0.00031506,2]
[400678353,1767777085041,-557.84,0.00031506,2]
[400678354,1767777085052,-500.0,0.00031506,2]
[400678355,1767777085062,-678.0,0.00031506,2]
[400678356,1767777085072,-500.0,0.00031506,2]
[400678357,1767777085081,-500.0,0.00031506,2]
[400678358,1767777085092,-2251.87,0.00031506,2]
[400678359,1767777085104,-637.59,0.00031506,2]
[400678360,1767777085114,-909.99,0.00031506,2]
[400678361,1767777085123,-500.0,0.00031506,2]
[400678362,1767777085133,-14665.45,0.00031506,2]
[400678363,1767777085143,-956.27,0.00031506,2]
[400678364,1767777085153,-661.34,0.00031506,2]
[400678365,1767777085165,-500.0,0.00031506,2]
[400678366,1767777085175,-927.69,0.00031506,2]
[400678367,1767777085184,-500.0,0.00031506,2]
[400678368,1767777085194,-4613.91,0.00031506,2]
[400678369,1767777085204,-717.62,0.00031506,2]
[400678370,1767777085214,-500.0,0.00031506,2]
[400678371,1767777085224,-500.0,0.00031506,2]
[400678372,1767777085234,-297.37549913,0.00031506,2]
[400678373,1767777085243,-2410.47,0.00031506,8]
[400678374,1767777085378,-1076.6,0.00031506,2]
[400678375,1767777085388,-2787.6,0.00031506,2]
[400678376,1767777085398,-500.0,0.00031506,2]
[400678377,1767777085408,-3498.13314812,0.00031506,2]
[400678378,1767777085418,-689.83,0.00031506,2]
[400678379,1767777085428,-836.4,0.00031506,2]
[400678380,1767777085437,-505.05,0.00031506,2]
[400678381,1767777085449,-853.68,0.00031506,2]
[400678382,1767777085459,-500.0,0.00031506,2]
[400678383,1767777085469,-500.0,0.00031506,2]
[400678384,1767777085479,-3088.57,0.00031506,2]
[400678385,1767777085488,-797.84,0.00031506,2]
[400678386,1767777085498,-725.03,0.00031506,2]
[400678387,1767777085508,-690.11,0.00031506,2]
[400678388,1767777085518,-800.0,0.00031511,2]
[400678389,1767777085526,-500.0,0.00031529,7]
[400678390,1767777085536,-2200.0,0.00031547,7]
[400678391,1767777085545,-800.0,0.00031561,2]
[400678392,1767777085557,-892.33928554,0.00031591,2]
[400678393,1767777085567,-25963.54,0.000316,2]
[400678394,1767777085577,-714.0,0.00031617,2]
[400678395,1767777085587,-417.0,0.00031617,2]
[400678396,1767777085596,-195.223,0.00031617,2]
[400678397,1767777085606,-417.0,0.00031617,2]
[400678398,1767777085615,-459.68311318,0.00031621,15]
[400678399,1767777085626,-800.0,0.00031636,2]
[400678400,1767777085636,-2379.48446731,0.00031648,2]
[400678401,1767777085646,-713.97283296,0.0003165,2]
[400678402,1767777085656,-3449.14412057,0.0003165,2]
[400678403,1767777085666,-2000.0,0.00031664,7]
[400678404,1767777085675,-10000.0,0.00031694,30]
[400678405,1767777085685,-800.0,0.00031696,2]
[400678406,1767777085695,-15924.41,0.000317,7]
[400678407,1767777085705,-2800.0,0.00031705,7]
[400678408,1767777085714,-10000.0,0.00031779,2]
[400678409,1767777085725,-10000.0,0.00031779,30]
[400678410,1767777085735,-500.0,0.0003178,2]
[400678411,1767777085744,-317.74857932,0.0003178,2]
[400678412,1767777085754,-601.36,0.0003178,2]
[400678413,1767777085764,-756.53,0.0003178,2]
[400678414,1767777085773,-500.0,0.0003178,2]
[400678415,1767777085783,-836.74,0.0003178,2]
[400678416,1767777085794,-913.08,0.0003178,2]
[400678417,1767777085804,-500.0,0.0003178,2]
[400678418,1767777085814,-500.0,0.0003178,2]
[400678419,1767777085824,-548.79,0.0003178,2]
[400678420,1767777085833,-582.84,0.0003178,2]
[400678421,1767777085842,-500.0,0.0003178,2]
[400678422,1767777085852,-152.0,0.0003178,7]
[400678423,1767777085862,-152.0,0.0003178,7]
[400678424,1767777085872,-152.0,0.0003178,7]
[400678425,1767777085881,-152.0,0.0003178,7]
[400678426,1767777085892,-189.80913955,0.0003178,7]
[400678427,1767777085901,-3962.5,0.0003178,2]
[400678428,1767777085911,-528.82905795,0.0003178,2]
[400678429,1767777085940,-557.84,0.0003178,2]
[400678430,1767777085950,-500.0,0.0003178,2]
[400678431,1767777085959,-678.0,0.0003178,2]
[400678432,1767777085968,-500.0,0.0003178,2]
[400678433,1767777085978,-329.2989715,0.0003178,2]
[400678434,1767777085987,-2251.87,0.0003178,2]
[400678435,1767777085997,-637.59,0.0003178,2]
[400678436,1767777086007,-909.99,0.0003178,2]
[400678437,1767777086017,-500.0,0.0003178,2]
[400678438,1767777086026,-14665.45,0.0003178,2]
[400678439,1767777086036,-956.27,0.0003178,2]
[400678440,1767777086045,-661.34,0.0003178,2]
[400678441,1767777086055,-500.0,0.0003178,2]
[400678442,1767777086064,-927.69,0.0003178,2]
[400678443,1767777086073,-500.0,0.0003178,2]
[400678444,1767777086083,-4613.91,0.0003178,2]
[400678445,1767777086094,-717.62,0.0003178,2]
[400678446,1767777086105,-500.0,0.0003178,2]
[400678447,1767777086114,-289.51362241,0.0003178,2]
[400678448,1767777086123,-1076.6,0.0003178,2]
[400678449,1767777086132,-2787.6,0.0003178,2]
[400678450,1767777086143,-398.33008248,0.0003178,2]
[400678451,1767777086161,-3498.13314812,0.0003178,2]
[400678452,1767777086175,-689.83,0.0003178,2]
[400678453,1767777086186,-836.4,0.0003178,2]
[400678454,1767777086196,-505.05,0.0003178,2]
[400678455,1767777086206,-853.68,0.0003178,2]
[400678456,1767777086216,-500.0,0.0003178,2]
[400678457,1767777086227,-304.17482637,0.0003178,2]
[400678458,1767777086237,-3088.57,0.0003178,2]
[400678459,1767777086248,-797.84,0.0003178,2]
[400678460,1767777086258,-152.0,0.0003178,7]
[400678461,1767777086267,-152.0,0.0003178,7]
[400678462,1767777086277,-152.0,0.0003178,7]
[400678463,1767777086288,-152.0,0.0003178,7]
[400678464,1767777086297,-725.03,0.0003178,2]
[400678465,1767777086307,-690.11,0.0003178,2]
[400678466,1767777086317,-6312.35556935,0.00031798,2]
[400678467,1767777086328,-775.0,0.00031838,7]
[400678468,1767777086337,-775.0,0.00031868,2]
[400678469,1767777086347,-18908.25294421,0.000319,2]
[400678470,1767777086356,-174.41697135,0.000319,120]
[400678471,1767777086366,-164.04291735,0.000319,120]
[400678472,1767777086376,-206.91086702,0.000319,120]
[400678473,1767777086385,-1247.79119589,0.000319,120]
[400678474,1767777086395,-186.0317041,0.000319,120]
[400678475,1767777086405,-258.12,0.000319,7]
[400678476,1767777086415,-243.07,0.000319,7]
[400678477,1767777086426,-160.0,0.00031959,120]
[400678478,1767777086436,-159.0,0.00031986,120]
[400678479,1767777086446,-1637.918531,0.00032,120]
[400678480,1767777086456,-200.66450954,0.00032,2]
[400678481,1767777086466,-1041.66666667,0.00032,120]
[400678482,1767777086476,-300.0,0.00032,120]
[400678483,1767777086485,-1019.0,0.00032,7]
[400678484,1767777086494,-185.0,0.00032008,120]
[400678485,1767777086504,-309.0,0.00032044,120]
[400678486,1767777086514,-775.0,0.00032044,7]
[400678487,1767777086524,-500.0,0.00032054,2]
[400678488,1767777086534,-601.36,0.00032054,2]
[400678489,1767777086544,-756.53,0.00032054,2]
[400678490,1767777086553,-500.0,0.00032054,2]
[400678491,1767777086563,-836.74,0.00032054,2]
[400678492,1767777086573,-913.08,0.00032054,2]
[400678493,1767777086583,-500.0,0.00032054,2]
[400678494,1767777086592,-402.32,0.00032054,32]
[400678495,1767777086602,-500.0,0.00032054,2]
[400678496,1767777086612,-548.79,0.00032054,2]
[400678497,1767777086621,-582.84,0.00032054,2]
[400678498,1767777086631,-500.0,0.00032054,2]
[400678499,1767777086641,-3962.5,0.00032054,2]
[400678500,1767777086650,-557.84,0.00032054,2]
[400678501,1767777086664,-500.0,0.00032054,2]
[400678502,1767777086674,-678.0,0.00032054,2]
[400678503,1767777086684,-500.0,0.00032054,2]
[400678504,1767777086693,-2251.87,0.00032054,2]
[400678505,1767777086703,-637.59,0.00032054,2]
[400678506,1767777086712,-909.99,0.00032054,2]
[400678507,1767777086722,-500.0,0.00032054,2]
[400678508,1767777086732,-14665.45,0.00032054,2]
[400678509,1767777086741,-956.27,0.00032054,2]
[400678510,1767777086750,-661.34,0.00032054,2]
[400678511,1767777086760,-500.0,0.00032054,2]
[400678512,1767777086770,-927.69,0.00032054,2]
[400678513,1767777086779,-500.0,0.00032054,2]
[400678514,1767777086788,-4613.91,0.00032054,2]